[Event "Titled Tuesday Blitz November 01 Late 2022"]
[White "Dzierzak, Radoslaw"]
[Black "Silva, Caio Henrique Angelico"]
[WhiteFideId "1161407"]
[BlackFideId "22777210"]
[WhiteElo "2111"]
[BlackElo "1990"]
[Result "1-0"]
[Round "09"]
[TimeControl "180+1"]
[Date "2022.11.02"]
[WhiteClock "0:00:56"]
[BlackClock "0:01:38"]

1. e4 {[%clk 0:01:58]}  c6 {[%clk 0:02:57]} 2. Nf3 {[%clk 0:01:58]}  d5 {[%clk 0:02:57]} 3. Nc3 {[%clk 0:01:58]}  Bg4 {[%clk 0:02:56]} 4. d4 {[%clk 0:01:58]}  Nf6 {[%clk 0:02:51]} 5. h3 {[%clk 0:01:57]}  Bxf3 {[%clk 0:02:50]} 6. Qxf3 {[%clk 0:01:58]}  dxe4 {[%clk 0:02:50]} 7. Qe3 {[%clk 0:01:59]}  Nbd7 {[%clk 0:02:45]} 8. Nxe4 {[%clk 0:01:59]}  Nxe4 {[%clk 0:02:45]} 9. Qxe4 {[%clk 0:02:00]}  Nf6 {[%clk 0:02:45]} 10. Qh4 {[%clk 0:02:00]}  e6 {[%clk 0:02:41]} 11. c3 {[%clk 0:02:00]}  Be7 {[%clk 0:02:39]} 12. Bd3 {[%clk 0:01:58]}  O-O {[%clk 0:02:35]} 13. g4 {[%clk 0:01:48]}  h6 {[%clk 0:02:25]} 14. g5 {[%clk 0:01:47]}  Nd5 {[%clk 0:02:19]} 15. Rg1 {[%clk 0:01:33]}  c5 {[%clk 0:02:14]} 16. Qh5 {[%clk 0:01:04]}  f5 {[%clk 0:02:02]} 17. gxh6 {[%clk 0:01:00]}  Bf6 {[%clk 0:01:53]} 18. hxg7 {[%clk 0:00:58]}  Rf7 {[%clk 0:01:38]} 19. Qh8# {[%clk 0:00:56]} 1-0


[Site "https://www.chess.com"]

[Event "Titled Tuesday Blitz November 01 Late 2022"]
[White "Ezat, Mohamed"]
[Black "Szpar, Milosz"]
[WhiteFideId "10600906"]
[BlackFideId "1184989"]
[WhiteElo "2386"]
[BlackElo "2422"]
[Result "0-1"]
[Round "09"]
[TimeControl "180+1"]
[Date "2022.11.02"]
[WhiteClock "0:01:14"]
[BlackClock "0:01:07"]

1. d4 {[%clk 0:03:00]}  Nf6 {[%clk 0:02:59]} 2. c4 {[%clk 0:03:00]}  c5 {[%clk 0:02:59]} 3. d5 {[%clk 0:02:59]}  e6 {[%clk 0:02:59]} 4. Nc3 {[%clk 0:02:57]}  exd5 {[%clk 0:02:59]} 5. cxd5 {[%clk 0:02:58]}  d6 {[%clk 0:03:00]} 6. e4 {[%clk 0:02:59]}  g6 {[%clk 0:02:59]} 7. f4 {[%clk 0:02:59]}  Bg7 {[%clk 0:02:58]} 8. Bb5+ {[%clk 0:03:00]}  Nfd7 {[%clk 0:02:56]} 9. Be2 {[%clk 0:03:00]}  Qh4+ {[%clk 0:02:53]} 10. g3 {[%clk 0:02:59]}  Qd8 {[%clk 0:02:54]} 11. Nf3 {[%clk 0:02:59]}  O-O {[%clk 0:02:53]} 12. O-O {[%clk 0:02:59]}  Na6 {[%clk 0:02:52]} 13. Kg2 {[%clk 0:02:46]}  Nc7 {[%clk 0:02:51]} 14. h3 {[%clk 0:02:45]}  Rb8 {[%clk 0:02:51]} 15. a4 {[%clk 0:02:44]}  Re8 {[%clk 0:02:43]} 16. Nd2 {[%clk 0:02:39]}  f5 {[%clk 0:02:38]} 17. exf5 {[%clk 0:02:36]}  gxf5 {[%clk 0:02:39]} 18. Bd3 {[%clk 0:02:32]}  Nf6 {[%clk 0:02:39]} 19. Nf3 {[%clk 0:02:29]}  b6 {[%clk 0:02:33]} 20. Qc2 {[%clk 0:02:19]}  Bb7 {[%clk 0:02:32]} 21. Rd1 {[%clk 0:02:12]}  Kh8 {[%clk 0:02:27]} 22. Ng5 {[%clk 0:02:11]}  Re7 {[%clk 0:02:24]} 23. Kh2 {[%clk 0:02:08]}  Ncxd5 {[%clk 0:02:20]} 24. Nxd5 {[%clk 0:02:07]}  Nxd5 {[%clk 0:02:18]} 25. Bc4 {[%clk 0:02:02]}  Nf6 {[%clk 0:02:09]} 26. Qxf5 {[%clk 0:01:59]}  d5 {[%clk 0:01:53]} 27. a5 {[%clk 0:01:45]}  Qe8 {[%clk 0:01:52]} 28. axb6 {[%clk 0:01:39]}  dxc4 {[%clk 0:01:48]} 29. g4 {[%clk 0:01:31]}  Re2+ {[%clk 0:01:45]} 30. Kg3 {[%clk 0:01:31]}  Rg2+ {[%clk 0:01:45]} 31. Kh4 {[%clk 0:01:31]}  axb6 {[%clk 0:01:40]} 32. Ra7 {[%clk 0:01:30]}  h6 {[%clk 0:01:28]} 33. Ne6 {[%clk 0:01:25]}  Qe7 {[%clk 0:01:19]} 34. Bd2 {[%clk 0:01:18]}  Nxg4+ {[%clk 0:01:15]} 35. Kh5 {[%clk 0:01:15]}  Nf6+ {[%clk 0:01:14]} 36. Kh4 {[%clk 0:01:15]}  Nh7+ {[%clk 0:01:07]} 37. Kh5 {[%clk 0:01:14]}  Bf3+ {[%clk 0:01:07]} 0-1


[Site "https://www.chess.com"]

[Event "Titled Tuesday Blitz November 01 Late 2022"]
[White "Fishchuk, Vladyslav"]
[Black "Danielyan, Vahe"]
[WhiteFideId "34122117"]
[BlackFideId "13304828"]
[WhiteElo "2054"]
[BlackElo "2421"]
[Result "1-0"]
[Round "09"]
[TimeControl "180+1"]
[Date "2022.11.02"]
[WhiteClock "0:00:12"]
[BlackClock "0:01:58"]

1. Nf3 {[%clk 0:03:00]}  b6 {[%clk 0:02:56]} 2. Nc3 {[%clk 0:02:58]}  Bb7 {[%clk 0:02:51]} 3. e4 {[%clk 0:02:55]}  e6 {[%clk 0:02:50]} 4. a3 {[%clk 0:02:54]}  c5 {[%clk 0:02:49]} 5. d4 {[%clk 0:02:53]}  cxd4 {[%clk 0:02:50]} 6. Nxd4 {[%clk 0:02:54]}  Nf6 {[%clk 0:02:50]} 7. Bd3 {[%clk 0:02:22]}  Bc5 {[%clk 0:02:48]} 8. Be3 {[%clk 0:02:20]}  O-O {[%clk 0:02:48]} 9. e5 {[%clk 0:02:18]}  Nd5 {[%clk 0:02:47]} 10. Nxd5 {[%clk 0:02:16]}  Bxd5 {[%clk 0:02:48]} 11. Qh5 {[%clk 0:02:07]}  g6 {[%clk 0:02:47]} 12. Qh6 {[%clk 0:02:05]}  Bxd4 {[%clk 0:02:48]} 13. Bxd4 {[%clk 0:02:03]}  Nc6 {[%clk 0:02:48]} 14. c3 {[%clk 0:01:58]}  Nxd4 {[%clk 0:02:48]} 15. cxd4 {[%clk 0:01:58]}  d6 {[%clk 0:02:48]} 16. h4 {[%clk 0:01:55]}  dxe5 {[%clk 0:02:48]} 17. h5 {[%clk 0:01:53]}  Qc7 {[%clk 0:02:37]} 18. Rc1 {[%clk 0:01:51]}  Qe7 {[%clk 0:02:30]} 19. hxg6 {[%clk 0:01:14]}  f5 {[%clk 0:02:30]} 20. Qxh7+ {[%clk 0:00:53]}  Qxh7 {[%clk 0:02:30]} 21. Rxh7 {[%clk 0:00:54]}  Rfc8 {[%clk 0:02:14]} 22. Rxc8+ {[%clk 0:00:52]}  Rxc8 {[%clk 0:02:15]} 23. dxe5 {[%clk 0:00:52]}  a5 {[%clk 0:02:15]} 24. Kd2 {[%clk 0:00:43]}  a4 {[%clk 0:02:14]} 25. Ke3 {[%clk 0:00:37]}  Bxg2 {[%clk 0:02:14]} 26. Kf4 {[%clk 0:00:36]}  Rd8 {[%clk 0:02:11]} 27. Bb5 {[%clk 0:00:27]}  Rd5 {[%clk 0:02:08]} 28. Be8 {[%clk 0:00:21]}  Rd3 {[%clk 0:02:08]} 29. Kg5 {[%clk 0:00:20]}  Kf8 {[%clk 0:02:02]} 30. Kf6 {[%clk 0:00:14]}  Rh3 {[%clk 0:01:57]} 31. g7+ {[%clk 0:00:12]}  Kg8 {[%clk 0:01:57]} 32. Rxh3 {[%clk 0:00:11]}  Bxh3 {[%clk 0:01:58]} 33. Bf7+ {[%clk 0:00:12]} 1-0


[Site "https://www.chess.com"]

[Event "Titled Tuesday Blitz November 01 Late 2022"]
[White "Floresvillar Gonzalez, Luis Migu"]
[Black "Kobla, Vishal"]
[WhiteFideId "5100542"]
[BlackFideId "2078457"]
[WhiteElo "2040"]
[BlackElo "1972"]
[Result "1/2-1/2"]
[Round "09"]
[TimeControl "180+1"]
[Date "2022.11.02"]
[WhiteClock "0:00:29"]
[BlackClock "0:00:57"]

1. c4 {[%clk 0:02:53]}  e6 {[%clk 0:02:58]} 2. Nc3 {[%clk 0:02:52]}  c5 {[%clk 0:02:59]} 3. g3 {[%clk 0:02:51]}  Nc6 {[%clk 0:02:58]} 4. Bg2 {[%clk 0:02:50]}  g6 {[%clk 0:02:59]} 5. d3 {[%clk 0:02:50]}  a6 {[%clk 0:02:57]} 6. h4 {[%clk 0:02:48]}  h5 {[%clk 0:02:56]} 7. Bg5 {[%clk 0:02:48]}  Qb6 {[%clk 0:02:55]} 8. Qb3 {[%clk 0:02:46]}  Qxb3 {[%clk 0:02:53]} 9. axb3 {[%clk 0:02:46]}  Bg7 {[%clk 0:02:51]} 10. Nf3 {[%clk 0:02:40]}  Nge7 {[%clk 0:02:51]} 11. O-O {[%clk 0:02:39]}  O-O {[%clk 0:02:51]} 12. Na4 {[%clk 0:02:33]}  d6 {[%clk 0:02:48]} 13. Nb6 {[%clk 0:02:33]}  Rb8 {[%clk 0:02:47]} 14. Nd2 {[%clk 0:02:28]}  Bxb2 {[%clk 0:02:43]} 15. Ra2 {[%clk 0:02:26]}  Be5 {[%clk 0:02:41]} 16. Ne4 {[%clk 0:02:20]}  f5 {[%clk 0:02:34]} 17. Nd2 {[%clk 0:02:09]}  Kf7 {[%clk 0:02:04]} 18. Nf3 {[%clk 0:02:08]}  Bf6 {[%clk 0:02:03]} 19. Bh6 {[%clk 0:01:57]}  Rd8 {[%clk 0:02:02]} 20. Bf4 {[%clk 0:01:53]}  e5 {[%clk 0:01:58]} 21. Ng5+ {[%clk 0:01:52]}  Kg7 {[%clk 0:01:57]} 22. Nxc8 {[%clk 0:01:39]}  Rdxc8 {[%clk 0:01:55]} 23. Bd2 {[%clk 0:01:33]}  Nd4 {[%clk 0:01:54]} 24. Ra3 {[%clk 0:01:21]}  Nxe2+ {[%clk 0:01:50]} 25. Kh2 {[%clk 0:01:21]}  Nd4 {[%clk 0:01:51]} 26. Be3 {[%clk 0:01:13]}  Nec6 {[%clk 0:01:46]} 27. Bxd4 {[%clk 0:01:08]}  Nxd4 {[%clk 0:01:46]} 28. Bd5 {[%clk 0:01:08]}  Bxg5 {[%clk 0:01:37]} 29. hxg5 {[%clk 0:01:07]}  Nc2 {[%clk 0:01:23]} 30. Ra2 {[%clk 0:01:01]}  Nb4 {[%clk 0:01:23]} 31. Rd2 {[%clk 0:00:58]}  Nxd5 {[%clk 0:01:23]} 32. cxd5 {[%clk 0:00:58]}  b5 {[%clk 0:01:24]} 33. Ra1 {[%clk 0:00:55]}  Rb6 {[%clk 0:01:24]} 34. Ra5 {[%clk 0:00:53]}  c4 {[%clk 0:01:21]} 35. dxc4 {[%clk 0:00:51]}  bxc4 {[%clk 0:01:22]} 36. bxc4 {[%clk 0:00:49]}  Rxc4 {[%clk 0:01:23]} 37. Rda2 {[%clk 0:00:47]}  Rd4 {[%clk 0:01:17]} 38. Rxa6 {[%clk 0:00:39]}  Rxa6 {[%clk 0:01:18]} 39. Rxa6 {[%clk 0:00:39]}  Rxd5 {[%clk 0:01:19]} 40. Ra7+ {[%clk 0:00:39]}  Kf8 {[%clk 0:01:20]} 41. Rd7 {[%clk 0:00:36]}  Rd2 {[%clk 0:01:19]} 42. Kg2 {[%clk 0:00:35]}  e4 {[%clk 0:01:16]} 43. Kf1 {[%clk 0:00:35]}  d5 {[%clk 0:01:16]} 44. Ke1 {[%clk 0:00:34]}  Rd3 {[%clk 0:01:15]} 45. Ke2 {[%clk 0:00:33]}  d4 {[%clk 0:01:14]} 46. Rd6 {[%clk 0:00:29]}  Kf7 {[%clk 0:01:14]} 47. Rd7+ {[%clk 0:00:29]}  Ke8 {[%clk 0:01:12]} 48. Rd6 {[%clk 0:00:29]}  Kf7 {[%clk 0:01:09]} 49. Rd7+ {[%clk 0:00:29]}  Kf8 {[%clk 0:01:10]} 50. Rd6 {[%clk 0:00:29]}  Kg7 {[%clk 0:00:58]} 51. Rd7+ {[%clk 0:00:29]}  Kg8 {[%clk 0:00:59]} 52. Rd6 {[%clk 0:00:29]}  Kh7 {[%clk 0:00:55]} 53. Rd7+ {[%clk 0:00:29]}  Kh8 {[%clk 0:00:56]} 54. Rd6 {[%clk 0:00:29]}  Kg7 {[%clk 0:00:56]} 55. Rd7+ {[%clk 0:00:29]}  Kf8 {[%clk 0:00:57]} 1/2-1/2


[Site "https://www.chess.com"]

[Event "Titled Tuesday Blitz November 01 Late 2022"]
[White "Goncalves, Davi Sulzbacher"]
[Black "Ernst, Sipke"]
[WhiteFideId "2154510"]
[BlackFideId "1004689"]
[WhiteElo "2182"]
[BlackElo "2438"]
[Result "0-1"]
[Round "09"]
[TimeControl "180+1"]
[Date "2022.11.02"]
[WhiteClock "0:00:01"]
[BlackClock "0:00:14"]

1. d4 {[%clk 0:03:00]}  Nf6 {[%clk 0:02:55]} 2. c4 {[%clk 0:03:00]}  Nc6 {[%clk 0:02:56]} 3. d5 {[%clk 0:02:59]}  Ne5 {[%clk 0:02:56]} 4. Nc3 {[%clk 0:02:56]}  e6 {[%clk 0:02:55]} 5. e4 {[%clk 0:02:53]}  Bb4 {[%clk 0:02:55]} 6. f4 {[%clk 0:02:45]}  Nxe4 {[%clk 0:02:38]} 7. fxe5 {[%clk 0:02:20]}  Qh4+ {[%clk 0:02:24]} 8. g3 {[%clk 0:02:20]}  Nxg3 {[%clk 0:02:23]} 9. Nf3 {[%clk 0:02:20]}  Qe4+ {[%clk 0:02:09]} 10. Kf2 {[%clk 0:02:02]}  Nxh1+ {[%clk 0:02:07]} 11. Kg2 {[%clk 0:02:03]}  Bxc3 {[%clk 0:02:04]} 12. bxc3 {[%clk 0:02:03]}  g5 {[%clk 0:02:01]} 13. Bd3 {[%clk 0:01:58]}  Qg4+ {[%clk 0:02:00]} 14. Kxh1 {[%clk 0:01:57]}  b5 {[%clk 0:01:56]} 15. Be2 {[%clk 0:01:12]}  bxc4 {[%clk 0:01:53]} 16. Nxg5 {[%clk 0:01:06]}  Qf5 {[%clk 0:01:23]} 17. Bf3 {[%clk 0:00:54]}  Bb7 {[%clk 0:01:22]} 18. Be4 {[%clk 0:00:51]}  Qxe5 {[%clk 0:01:13]} 19. Qf3 {[%clk 0:00:40]}  exd5 {[%clk 0:00:44]} 20. Qxf7+ {[%clk 0:00:35]}  Kd8 {[%clk 0:00:44]} 21. Bf4 {[%clk 0:00:35]}  Qe7 {[%clk 0:00:35]} 22. Bxc7+ {[%clk 0:00:35]}  Kxc7 {[%clk 0:00:28]} 23. Qxe7 {[%clk 0:00:36]}  dxe4 {[%clk 0:00:28]} 24. Ne6+ {[%clk 0:00:33]}  Kc8 {[%clk 0:00:26]} 25. Nc5 {[%clk 0:00:22]}  Bc6 {[%clk 0:00:26]} 26. Rf1 {[%clk 0:00:16]}  e3+ {[%clk 0:00:26]} 27. Ne4 {[%clk 0:00:14]}  Rb8 {[%clk 0:00:25]} 28. Rf8+ {[%clk 0:00:11]}  Rxf8 {[%clk 0:00:25]} 29. Qxf8+ {[%clk 0:00:12]}  Kb7 {[%clk 0:00:25]} 30. Qf4 {[%clk 0:00:06]}  Re8 {[%clk 0:00:23]} 31. Kg1 {[%clk 0:00:04]}  Rxe4 {[%clk 0:00:22]} 32. Qf1 {[%clk 0:00:04]}  e2 {[%clk 0:00:22]} 33. Qe1 {[%clk 0:00:04]}  Re6 {[%clk 0:00:18]} 34. Kf2 {[%clk 0:00:04]}  Rf6+ {[%clk 0:00:18]} 35. Ke3 {[%clk 0:00:04]}  Re6+ {[%clk 0:00:14]} 36. Kd4 {[%clk 0:00:03]}  Kc8 {[%clk 0:00:15]} 37. Kc5 {[%clk 0:00:01]}  h5 {[%clk 0:00:14]} 38. a4 {[%clk 0:00:01]}  a5 {[%clk 0:00:14]} 0-1


[Site "https://www.chess.com"]

[Event "Titled Tuesday Blitz November 01 Late 2022"]
[White "Haszon, David"]
[Black "Pavlidou, Ekaterini"]
[WhiteFideId "733610"]
[BlackFideId "4213262"]
[WhiteElo "2211"]
[BlackElo "2125"]
[Result "1/2-1/2"]
[Round "09"]
[TimeControl "180+1"]
[Date "2022.11.02"]
[WhiteClock "0:00:08"]
[BlackClock "0:01:04"]

1. d4 {[%clk 0:03:00]}  Nf6 {[%clk 0:02:59]} 2. Bf4 {[%clk 0:02:59]}  c5 {[%clk 0:02:58]} 3. e3 {[%clk 0:02:53]}  b6 {[%clk 0:02:58]} 4. Nc3 {[%clk 0:02:53]}  Bb7 {[%clk 0:02:58]} 5. Nf3 {[%clk 0:02:52]}  e6 {[%clk 0:02:58]} 6. Nb5 {[%clk 0:02:33]}  d6 {[%clk 0:02:57]} 7. dxc5 {[%clk 0:02:33]}  e5 {[%clk 0:02:58]} 8. Bxe5 {[%clk 0:02:18]}  dxe5 {[%clk 0:02:55]} 9. Qxd8+ {[%clk 0:02:19]}  Kxd8 {[%clk 0:02:54]} 10. Nxe5 {[%clk 0:02:17]}  Bxc5 {[%clk 0:02:42]} 11. Nxf7+ {[%clk 0:02:16]}  Ke7 {[%clk 0:02:42]} 12. Nxh8 {[%clk 0:02:09]}  Nc6 {[%clk 0:02:42]} 13. Be2 {[%clk 0:01:58]}  Rxh8 {[%clk 0:02:38]} 14. c3 {[%clk 0:01:54]}  h5 {[%clk 0:02:36]} 15. Bf3 {[%clk 0:01:53]}  a5 {[%clk 0:02:32]} 16. O-O-O {[%clk 0:01:49]}  a4 {[%clk 0:02:29]} 17. Rhe1 {[%clk 0:01:38]}  Nd8 {[%clk 0:02:27]} 18. Nd4 {[%clk 0:01:36]}  Bxf3 {[%clk 0:02:24]} 19. Nxf3 {[%clk 0:01:35]}  Ne6 {[%clk 0:02:19]} 20. Nd4 {[%clk 0:01:34]}  Ne4 {[%clk 0:02:14]} 21. f3 {[%clk 0:01:31]}  N4g5 {[%clk 0:02:09]} 22. h4 {[%clk 0:01:28]}  Nf7 {[%clk 0:02:09]} 23. g3 {[%clk 0:01:05]}  Ne5 {[%clk 0:02:08]} 24. f4 {[%clk 0:00:59]}  Ng4 {[%clk 0:02:08]} 25. e4 {[%clk 0:00:57]}  Rc8 {[%clk 0:02:05]} 26. Kb1 {[%clk 0:00:55]}  g6 {[%clk 0:01:57]} 27. b3 {[%clk 0:00:27]}  axb3 {[%clk 0:01:52]} 28. axb3 {[%clk 0:00:28]}  b5 {[%clk 0:01:51]} 29. Kb2 {[%clk 0:00:22]}  b4 {[%clk 0:01:48]} 30. Nxe6 {[%clk 0:00:19]}  bxc3+ {[%clk 0:01:48]} 31. Kxc3 {[%clk 0:00:18]}  Bf2+ {[%clk 0:01:47]} 32. Kb4 {[%clk 0:00:12]}  Kxe6 {[%clk 0:01:44]} 33. Re2 {[%clk 0:00:10]}  Bxg3 {[%clk 0:01:43]} 34. f5+ {[%clk 0:00:10]}  gxf5 {[%clk 0:01:43]} 35. exf5+ {[%clk 0:00:11]}  Kxf5 {[%clk 0:01:42]} 36. Rd5+ {[%clk 0:00:12]}  Kg6 {[%clk 0:01:38]} 37. Re6+ {[%clk 0:00:11]}  Nf6 {[%clk 0:01:37]} 38. Rg5+ {[%clk 0:00:11]}  Kf7 {[%clk 0:01:36]} 39. Rxf6+ {[%clk 0:00:11]}  Kxf6 {[%clk 0:01:35]} 40. Rxg3 {[%clk 0:00:12]}  Re8 {[%clk 0:01:33]} 41. Rg5 {[%clk 0:00:12]}  Re4+ {[%clk 0:01:33]} 42. Kc5 {[%clk 0:00:12]}  Rxh4 {[%clk 0:01:34]} 43. Rg8 {[%clk 0:00:12]}  Rh1 {[%clk 0:01:32]} 44. b4 {[%clk 0:00:12]}  h4 {[%clk 0:01:31]} 45. b5 {[%clk 0:00:12]}  Rc1+ {[%clk 0:01:30]} 46. Kb6 {[%clk 0:00:12]}  h3 {[%clk 0:01:28]} 47. Rh8 {[%clk 0:00:12]}  Rc3 {[%clk 0:01:28]} 48. Ka7 {[%clk 0:00:12]}  Kg5 {[%clk 0:01:26]} 49. b6 {[%clk 0:00:12]}  Kg4 {[%clk 0:01:25]} 50. b7 {[%clk 0:00:12]}  Ra3+ {[%clk 0:01:25]} 51. Kb6 {[%clk 0:00:12]}  Rb3+ {[%clk 0:01:24]} 52. Kc7 {[%clk 0:00:13]}  Rc3+ {[%clk 0:01:21]} 53. Kd7 {[%clk 0:00:12]}  Rb3 {[%clk 0:01:20]} 54. Kc8 {[%clk 0:00:13]}  Kg3 {[%clk 0:01:19]} 55. Rg8+ {[%clk 0:00:11]}  Kf2 {[%clk 0:01:17]} 56. Rf8+ {[%clk 0:00:10]}  Kg2 {[%clk 0:01:17]} 57. Rg8+ {[%clk 0:00:10]}  Kf2 {[%clk 0:01:16]} 58. Rh8 {[%clk 0:00:09]}  Kg2 {[%clk 0:01:14]} 59. Kc7 {[%clk 0:00:09]}  h2 {[%clk 0:01:13]} 60. Rg8+ {[%clk 0:00:09]}  Kf2 {[%clk 0:01:11]} 61. Rf8+ {[%clk 0:00:09]}  Kg1 {[%clk 0:01:11]} 62. Rg8+ {[%clk 0:00:09]}  Kf1 {[%clk 0:01:10]} 63. Rf8+ {[%clk 0:00:09]}  Kg1 {[%clk 0:01:10]} 64. Rg8+ {[%clk 0:00:06]}  Kf2 {[%clk 0:01:09]} 65. Rf8+ {[%clk 0:00:06]}  Kg2 {[%clk 0:01:09]} 66. Rg8+ {[%clk 0:00:06]}  Rg3 {[%clk 0:01:07]} 67. Rh8 {[%clk 0:00:06]}  Rc3+ {[%clk 0:01:06]} 68. Kd7 {[%clk 0:00:06]}  Rd3+ {[%clk 0:01:06]} 69. Kc7 {[%clk 0:00:06]}  Rc3+ {[%clk 0:01:06]} 70. Kd7 {[%clk 0:00:07]}  Rb3 {[%clk 0:01:06]} 71. Kc7 {[%clk 0:00:07]}  Rb2 {[%clk 0:01:05]} 72. Rxh2+ {[%clk 0:00:06]}  Kxh2 {[%clk 0:01:04]} 73. b8=Q {[%clk 0:00:07]}  Rxb8 {[%clk 0:01:04]} 74. Kxb8 {[%clk 0:00:08]} 1/2-1/2


[Site "https://www.chess.com"]

[Event "Titled Tuesday Blitz November 01 Late 2022"]
[White "Hemam, Moulaye Brahim"]
[Black "Ali Abdullahi, Farah"]
[WhiteFideId "19600054"]
[BlackFideId "16100212"]
[WhiteElo "2088"]
[BlackElo "2286"]
[Result "1-0"]
[Round "09"]
[TimeControl "180+1"]
[Date "2022.11.02"]
[WhiteClock "0:01:30"]
[BlackClock "0:01:41"]

1. e4 {[%clk 0:02:59]}  e6 {[%clk 0:02:59]} 2. d4 {[%clk 0:02:59]}  d5 {[%clk 0:02:57]} 3. Nc3 {[%clk 0:02:59]}  Nf6 {[%clk 0:02:56]} 4. e5 {[%clk 0:02:59]}  Nfd7 {[%clk 0:02:56]} 5. f4 {[%clk 0:02:59]}  c5 {[%clk 0:02:55]} 6. Nf3 {[%clk 0:02:59]}  Nc6 {[%clk 0:02:56]} 7. Be3 {[%clk 0:02:59]}  cxd4 {[%clk 0:02:56]} 8. Nxd4 {[%clk 0:02:58]}  Nxd4 {[%clk 0:02:56]} 9. Bxd4 {[%clk 0:02:58]}  a6 {[%clk 0:02:56]} 10. Qd2 {[%clk 0:02:57]}  Bc5 {[%clk 0:02:56]} 11. O-O-O {[%clk 0:02:56]}  Bxd4 {[%clk 0:02:56]} 12. Qxd4 {[%clk 0:02:55]}  Qb6 {[%clk 0:02:56]} 13. Be2 {[%clk 0:02:50]}  Qxd4 {[%clk 0:02:56]} 14. Rxd4 {[%clk 0:02:51]}  Nc5 {[%clk 0:02:54]} 15. b4 {[%clk 0:02:46]}  Nd7 {[%clk 0:02:54]} 16. Kb2 {[%clk 0:02:43]}  b5 {[%clk 0:02:51]} 17. Bd3 {[%clk 0:02:30]}  Nb6 {[%clk 0:02:51]} 18. g4 {[%clk 0:02:28]}  h5 {[%clk 0:02:49]} 19. g5 {[%clk 0:02:21]}  g6 {[%clk 0:02:46]} 20. h4 {[%clk 0:02:20]}  Bd7 {[%clk 0:02:44]} 21. Kc1 {[%clk 0:02:14]}  Rc8 {[%clk 0:02:43]} 22. Kd2 {[%clk 0:02:14]}  Ke7 {[%clk 0:02:43]} 23. Ra1 {[%clk 0:02:09]}  Rc7 {[%clk 0:02:40]} 24. a4 {[%clk 0:02:03]}  Rhc8 {[%clk 0:02:36]} 25. a5 {[%clk 0:01:57]}  Nc4+ {[%clk 0:02:14]} 26. Ke2 {[%clk 0:01:48]}  Nxe5 {[%clk 0:02:07]} 27. Nxd5+ {[%clk 0:01:43]}  exd5 {[%clk 0:02:02]} 28. fxe5 {[%clk 0:01:41]}  Bf5 {[%clk 0:01:46]} 29. Rxd5 {[%clk 0:01:35]}  Bxd3+ {[%clk 0:01:43]} 30. cxd3 {[%clk 0:01:33]}  Rc2+ {[%clk 0:01:40]} 31. Ke3 {[%clk 0:01:32]}  Rd2 {[%clk 0:01:41]} 32. Kxd2 {[%clk 0:01:30]} 1-0


[Site "https://www.chess.com"]

[Event "Titled Tuesday Blitz November 01 Late 2022"]
[White "Hua, Lefong"]
[Black "Brown, Andrew"]
[WhiteFideId "2602253"]
[BlackFideId "3206513"]
[WhiteElo "2589"]
[BlackElo "2245"]
[Result "1/2-1/2"]
[Round "09"]
[TimeControl "180+1"]
[Date "2022.11.02"]
[WhiteClock "0:00:33"]
[BlackClock "0:00:03"]

1. d4 {[%clk 0:03:00]}  g6 {[%clk 0:03:00]} 2. c4 {[%clk 0:03:00]}  Bg7 {[%clk 0:03:00]} 3. e4 {[%clk 0:03:01]}  d6 {[%clk 0:03:01]} 4. f4 {[%clk 0:03:01]}  Nd7 {[%clk 0:02:58]} 5. Nf3 {[%clk 0:03:01]}  e5 {[%clk 0:02:56]} 6. fxe5 {[%clk 0:03:01]}  dxe5 {[%clk 0:02:56]} 7. d5 {[%clk 0:03:01]}  Ngf6 {[%clk 0:02:46]} 8. Nc3 {[%clk 0:03:01]}  Nc5 {[%clk 0:02:44]} 9. Bg5 {[%clk 0:02:55]}  h6 {[%clk 0:02:41]} 10. Bxf6 {[%clk 0:02:55]}  Qxf6 {[%clk 0:02:39]} 11. b4 {[%clk 0:02:54]}  Nxe4 {[%clk 0:02:09]} 12. Nxe4 {[%clk 0:02:54]}  Qb6 {[%clk 0:02:09]} 13. Qb3 {[%clk 0:02:43]}  a5 {[%clk 0:01:53]} 14. c5 {[%clk 0:02:23]}  Qxb4+ {[%clk 0:01:52]} 15. Qxb4 {[%clk 0:02:24]}  axb4 {[%clk 0:01:53]} 16. Bb5+ {[%clk 0:02:23]}  Bd7 {[%clk 0:01:32]} 17. Bxd7+ {[%clk 0:02:19]}  Kxd7 {[%clk 0:01:32]} 18. O-O {[%clk 0:02:09]}  f5 {[%clk 0:01:31]} 19. c6+ {[%clk 0:02:09]}  bxc6 {[%clk 0:01:25]} 20. dxc6+ {[%clk 0:01:56]}  Kxc6 {[%clk 0:01:22]} 21. Rac1+ {[%clk 0:01:55]}  Kb6 {[%clk 0:01:20]} 22. Nc5 {[%clk 0:01:50]}  e4 {[%clk 0:00:56]} 23. Ne5 {[%clk 0:01:49]}  Rxa2 {[%clk 0:00:33]} 24. Ncd7+ {[%clk 0:01:45]}  Kb7 {[%clk 0:00:33]} 25. Nc6 {[%clk 0:01:32]}  Bc3 {[%clk 0:00:23]} 26. Nxb4 {[%clk 0:01:14]}  Bxb4 {[%clk 0:00:23]} 27. Rb1 {[%clk 0:01:14]}  Kc8 {[%clk 0:00:20]} 28. Rxb4 {[%clk 0:01:10]}  Kxd7 {[%clk 0:00:20]} 29. Rd1+ {[%clk 0:01:10]}  Ke7 {[%clk 0:00:16]} 30. Rc4 {[%clk 0:01:10]}  Rc8 {[%clk 0:00:16]} 31. Rc6 {[%clk 0:01:10]}  Kf7 {[%clk 0:00:08]} 32. h4 {[%clk 0:01:04]}  e3 {[%clk 0:00:07]} 33. Rd7+ {[%clk 0:00:58]}  Ke8 {[%clk 0:00:07]} 34. Rd5 {[%clk 0:00:57]}  Ra1+ {[%clk 0:00:06]} 35. Kh2 {[%clk 0:00:54]}  Kf7 {[%clk 0:00:06]} 36. Rd7+ {[%clk 0:00:50]}  Kf8 {[%clk 0:00:06]} 37. Rf6+ {[%clk 0:00:36]}  Ke8 {[%clk 0:00:05]} 38. Rff7 {[%clk 0:00:34]}  e2 {[%clk 0:00:02]} 39. Rfe7+ {[%clk 0:00:33]}  Kf8 {[%clk 0:00:02]} 40. Rf7+ {[%clk 0:00:33]}  Ke8 {[%clk 0:00:03]} 41. Rde7+ {[%clk 0:00:33]}  Kd8 {[%clk 0:00:03]} 42. Rd7+ {[%clk 0:00:33]}  Ke8 {[%clk 0:00:03]} 1/2-1/2


[Site "https://www.chess.com"]